bitfinex/quotes_SOLUSD_20241208
["timestamp","ask_amount","ask_price","bid_price","bid_amount"]
[1733643346651,1.5574,238.68,238.64,8.09923335]
[1733643346850,1.5574,238.68,238.63,8.09923335]
[1733643348164,0.12549,238.67,238.61,8.09923335]
[1733643348748,8.35021335,238.67,238.61,8.09923335]
[1733643348944,8.35021335,238.67,238.53,6.5279]
[1733643348945,8.09923335,238.66,238.56,20.0]
[1733643349148,8.09923335,238.66,238.59,8.09923335]
[1733643349378,8.09923335,238.65,238.58,8.09923335]
[1733643351587,8.09923335,238.65,238.56,20.0]
[1733643351588,0.12549,238.65,238.59,8.09923335]
[1733643352388,32.00160735,238.65,238.58,8.09923335]
[1733643354089,32.00160735,238.65,238.59,8.09923335]
[1733643357985,23.776884,238.66,238.6,8.09923335]
[1733643360266,31.87611735,238.66,238.6,8.09923335]
[1733643363571,8.22472335,238.65,238.59,8.09923335]
[1733643365474,8.22472335,238.65,238.54,20.0]
[1733643365475,0.12549,238.65,238.61,8.09923335]
[1733643366487,0.12549,238.65,238.6,8.09923335]
[1733643369817,0.12549,238.65,238.59,8.09923335]
[1733643371677,0.12549,238.65,238.54,20.0]
[1733643371981,0.12549,238.65,238.59,8.09923335]
[1733643374627,0.12549,238.65,238.54,20.0]
[1733643375009,0.12549,238.65,238.59,8.09923335]
[1733643376294,23.776884,238.59,238.5,8.09923335]
[1733643376497,8.09923335,238.56,238.49,8.09923335]
[1733643376899,1.5948,238.57,238.41,7.7463]
[1733643376900,8.09923335,238.55,238.41,7.7463]
[1733643377109,8.09923335,238.52,238.46,8.09923335]
[1733643377320,31.87611735,238.51,238.39,0.4996384]
[1733643377527,8.09923335,238.51,238.45,8.09923335]
[1733643378927,0.12549,238.5,238.46,8.09923335]
[1733643379118,0.12549,238.5,238.45,8.09923335]
[1733643380729,10.4784,238.59,238.49,8.09923335]
[1733643380935,8.09923335,238.59,238.53,8.09923335]
[1733643381732,0.12549,238.56,238.53,8.09923335]
[1733643382245,23.902374,238.56,238.53,8.09923335]
[1733643382539,6.5154,238.62,238.55,8.09923335]
[1733643382705,9.68943335,238.63,238.56,8.09923335]
[1733643383639,0.12549,238.62,238.56,8.09923335]
[1733643384000,8.22472335,238.62,238.55,8.09923335]
[1733643384205,8.22472335,238.61,238.55,8.09923335]
[1733643385638,32.12709735,238.62,238.55,8.09923335]
[1733643385942,24.027864,238.62,238.56,8.09923335]
[1733643389142,24.027864,238.62,238.46,10.3205]
[1733643389143,0.25098,238.62,238.59,8.09923335]
[1733643389353,1.5902,238.63,238.59,8.09923335]
[1733643389541,1.5902,238.63,238.58,8.09923335]
[1733643389745,1.5902,238.63,238.57,8.09923335]
[1733643390421,1.5902,238.63,238.59,8.09923335]
[1733643390621,1.6317,238.7,238.62,8.09923335]
[1733643390956,1.6317,238.7,238.64,8.09923335]
[1733643391249,1.6317,238.7,238.65,8.09923335]
[1733643391961,1.6317,238.78,238.69,8.09923335]
[1733643392290,9.73093335,238.78,238.59,20.0]
[1733643392452,8.09923335,238.75,238.68,8.09923335]
[1733643392971,8.09923335,238.74,238.67,8.09923335]
[1733643393249,0.12549,238.69,238.63,8.09923335]
[1733643393420,8.09923335,238.74,238.67,8.09923335]
[1733643393622,8.09923335,238.76,238.69,8.09923335]
[1733643393958,0.12549,238.74,238.69,8.09923335]
[1733643394320,23.776884,238.75,238.69,8.09923335]
[1733643394519,23.776884,238.75,238.7,8.09923335]
[1733643394745,23.776884,238.75,238.59,24.19]
[1733643394746,1.6317,238.78,238.72,8.09923335]
[1733643396353,23.902374,238.77,238.72,8.09923335]
[1733643397051,1.6317,238.78,238.73,8.09923335]
[1733643397953,1.6317,238.78,238.75,8.09923335]
[1733643398728,1.6317,238.78,238.74,8.09923335]
[1733643398936,1.6317,238.78,238.73,8.09923335]
[1733643399151,1.6317,238.78,238.72,8.09923335]
[1733643399330,1.6317,238.78,238.71,8.09923335]
[1733643399529,1.6317,238.78,238.72,8.09923335]
[1733643400926,9.73093335,238.78,238.71,8.09923335]
[1733643409275,0.12549,238.75,238.61,10.477]
[1733643409435,0.12549,238.75,238.69,8.09923335]
[1733643410960,23.902374,238.77,238.69,8.09923335]
[1733643411177,23.776884,238.75,238.69,8.09923335]
[1733643411674,1.6317,238.78,238.74,8.09923335]
[1733643411972,1.6317,238.78,238.75,8.09923335]
[1733643412559,1.6317,238.78,238.74,8.09923335]
[1733643415271,1.6317,238.78,238.75,8.09923335]
[1733643416585,1.6317,238.78,238.74,8.09923335]
[1733643416951,1.5198,238.85,238.77,8.09923335]
[1733643417178,1.5198,238.85,238.81,8.09923335]
[1733643417484,1.5198,238.85,238.79,8.09923335]
[1733643417657,8.09923335,238.83,238.76,8.09923335]
[1733643417981,0.12549,238.82,238.76,8.09923335]
[1733643419356,0.12549,238.82,238.77,8.09923335]
[1733643419775,24.027864,238.82,238.71,20.0]
[1733643419957,24.027864,238.82,238.76,8.09923335]
[1733643420377,23.776884,238.8,238.74,8.09923335]
[1733643421261,23.776884,238.8,238.68,32.3969334]
[1733643421450,0.12549,238.79,238.75,8.09923335]
[1733643424384,0.12549,238.8,238.75,8.09923335]
[1733643428689,0.12549,238.8,238.74,8.09923335]
[1733643429988,0.12549,238.82,238.77,8.09923335]
[1733643430292,29.61903335,238.85,238.78,8.09923335]
[1733643430592,8.09923335,238.83,238.76,8.09923335]
[1733643430967,8.09923335,238.8,238.71,20.0]
[1733643431278,8.09923335,238.79,238.72,8.09923335]
[1733643431482,8.09923335,238.8,238.73,8.09923335]
[1733643432476,8.09923335,238.81,238.74,8.09923335]
[1733643432674,8.22472335,238.82,238.75,8.09923335]
[1733643432882,23.776884,238.81,238.75,8.09923335]
[1733643435095,8.22472335,238.82,238.75,8.09923335]
[1733643435510,8.22472335,238.81,238.74,8.09923335]
[1733643436771,0.12549,238.82,238.74,8.09923335]
[1733643436969,8.09923335,238.81,238.74,8.09923335]
[1733643438586,8.09923335,238.81,238.75,8.09923335]
[1733643438587,0.12549,238.81,238.75,8.09923335]
[1733643441731,0.12549,238.82,238.75,8.09923335]
[1733643442013,23.902374,238.82,238.75,8.09923335]
[1733643442390,0.12549,238.81,238.75,8.09923335]
[1733643442712,0.12549,238.81,238.74,8.09923335]
[1733643444417,0.12549,238.81,238.75,8.09923335]
[1733643445595,0.12549,238.81,238.76,8.09923335]
[1733643446098,11.9869,238.85,238.71,20.0]
[1733643446420,8.09923335,238.84,238.77,8.09923335]
[1733643447997,1.5198,238.85,238.81,8.09923335]
[1733643448297,18.56463335,238.89,238.82,8.09923335]
[1733643448492,8.09923335,238.89,238.82,8.09923335]
[1733643448953,0.12549,238.88,238.82,8.09923335]
[1733643449451,8.09923335,238.89,238.82,8.09923335]
[1733643450052,0.12549,238.88,238.82,8.09923335]
[1733643453795,8.09923335,238.86,238.74,6.1667]
[1733643454093,8.09923335,238.85,238.78,8.09923335]
[1733643454566,8.09923335,238.85,238.77,20.0]
[1733643454766,8.09923335,238.85,238.78,8.09923335]
[1733643458003,0.12549,238.84,238.78,8.09923335]
[1733643458360,8.22472335,238.84,238.77,8.09923335]
[1733643458567,8.09923335,238.84,238.77,8.09923335]
[1733643461101,8.09923335,238.83,238.76,8.09923335]
[1733643461407,8.09923335,238.77,238.7,8.09923335]
[1733643461689,8.09923335,238.78,238.71,8.09923335]
[1733643464197,8.09923335,238.77,238.71,8.09923335]
[1733643464398,8.09923335,238.77,238.7,8.09923335]
[1733643464907,0.12549,238.81,238.69,8.09923335]
[1733643464908,8.09923335,238.75,238.69,8.09923335]
[1733643466396,35.6086,238.81,238.63,6.4625]
[1733643466590,8.09923335,238.72,238.59,10.4778]
[1733643466797,8.09923335,238.72,238.65,8.09923335]
[1733643467099,8.09923335,238.72,238.59,10.4778]
[1733643467100,8.09923335,238.72,238.66,8.09923335]
[1733643467303,8.09923335,238.73,238.66,8.09923335]
[1733643468147,8.09923335,238.72,238.66,8.09923335]
[1733643469125,8.09923335,238.72,238.65,8.09923335]
[1733643469823,8.09923335,238.71,238.64,8.09923335]
[1733643470029,1.52,238.74,238.64,8.09923335]
[1733643470030,8.22472335,238.7,238.64,8.09923335]
[1733643470332,8.22472335,238.7,238.63,8.09923335]
[1733643471204,8.22472335,238.7,238.64,8.09923335]
[1733643471405,0.12549,238.7,238.64,8.09923335]
[1733643471607,8.09923335,238.68,238.57,6.4625]
[1733643471925,8.09923335,238.67,238.6,8.09923335]
[1733643472228,0.12549,238.66,238.6,8.09923335]
[1733643472409,8.09923335,238.65,238.59,8.09923335]
[1733643472821,0.12549,238.65,238.59,8.09923335]
[1733643473136,0.12549,238.65,238.6,8.09923335]
[1733643473838,8.09923335,238.67,238.6,8.09923335]
[1733643475049,0.12549,238.66,238.6,8.09923335]
[1733643475926,23.902374,238.67,238.61,8.09923335]
[1733643478163,8.09923335,238.66,238.6,8.09923335]
[1733643478855,8.09923335,238.66,238.59,8.09923335]
[1733643479059,8.09923335,238.63,238.56,8.09923335]
[1733643479717,8.09923335,238.64,238.57,8.09923335]
[1733643480130,23.776884,238.64,238.58,8.09923335]
[1733643480353,23.776884,238.64,238.54,20.0]
[1733643480560,31.87611735,238.64,238.57,8.09923335]
[1733643481942,8.22472335,238.63,238.56,8.09923335]
[1733643482251,0.12549,238.63,238.58,8.09923335]
[1733643482964,8.09923335,238.64,238.57,8.09923335]
[1733643488236,0.12549,238.62,238.57,8.09923335]
[1733643488558,0.12549,238.62,238.56,8.09923335]
[1733643490551,0.12549,238.62,238.55,8.09923335]
[1733643490863,8.09923335,238.62,238.55,8.09923335]
[1733643491245,8.09923335,238.61,238.54,28.09923335]
[1733643492137,8.22472335,238.6,238.5,20.0]
[1733643492365,0.12549,238.6,238.54,8.09923335]
[1733643492538,0.12549,238.6,238.55,8.09923335]
[1733643492861,0.12549,238.61,238.55,8.09923335]
[1733643493565,8.09923335,238.63,238.56,8.09923335]
[1733643493766,23.776884,238.62,238.56,8.09923335]
[1733643493944,8.09923335,238.64,238.57,8.09923335]
[1733643494548,0.12549,238.63,238.57,8.09923335]
[1733643495163,8.09923335,238.64,238.57,8.09923335]
[1733643495462,0.12549,238.63,238.57,8.09923335]
[1733643496072,23.902374,238.63,238.57,8.09923335]
[1733643500243,23.902374,238.63,238.58,8.09923335]
[1733643500463,23.776884,238.64,238.58,8.09923335]
[1733643501276,31.87611735,238.64,238.57,8.09923335]
[1733643501576,31.87611735,238.65,238.58,8.09923335]
[1733643502774,8.09923335,238.64,238.57,8.09923335]
[1733643503471,8.09923335,238.63,238.5,20.0]
[1733643503781,8.09923335,238.6,238.53,8.09923335]
[1733643504758,32.00160735,238.59,238.46,6.2303]
[1733643504964,8.09923335,238.58,238.51,8.09923335]
[1733643505962,8.09923335,238.58,238.52,8.09923335]
[1733643506660,32.00160735,238.59,238.52,8.09923335]
[1733643508698,23.902374,238.59,238.53,8.09923335]
[1733643511787,10.4764,238.64,238.57,8.09923335]
[1733643511973,18.57563335,238.64,238.58,8.09923335]
[1733643513606,31.87611735,238.63,238.56,8.09923335]
[1733643514778,8.22472335,238.62,238.47,10.60889]
[1733643514975,8.22472335,238.62,238.55,8.09923335]
[1733643516578,0.12549,238.62,238.55,8.09923335]
[1733643516780,8.22472335,238.62,238.55,8.09923335]
[1733643518997,31.87611735,238.61,238.46,6.2303]
[1733643519185,8.09923335,238.6,238.53,8.09923335]
[1733643519517,31.87611735,238.59,238.52,8.09923335]
[1733643520331,8.09923335,238.56,238.43,10.4848]
[1733643520626,23.776884,238.57,238.5,8.09923335]
[1733643520627,31.87611735,238.57,238.5,8.09923335]
[1733643520807,23.776884,238.57,238.51,8.09923335]
[1733643521896,23.776884,238.57,238.44,32.3969334]
[1733643522098,23.776884,238.57,238.51,8.09923335]
[1733643522910,8.22472335,238.56,238.49,8.09923335]
[1733643523113,31.87611735,238.55,238.48,8.09923335]
[1733643523425,23.776884,238.55,238.49,8.09923335]
[1733643524819,23.902374,238.56,238.51,8.09923335]
[1733643525606,23.902374,238.56,238.44,20.0]
[1733643526204,23.902374,238.56,238.51,8.09923335]
[1733643531803,23.776884,238.57,238.51,8.09923335]
[1733643532134,1.6541,238.58,238.53,8.09923335]
[1733643533716,1.6541,238.58,238.52,8.09923335]
[1733643534415,9.75333335,238.58,238.48,20.0]
[1733643534616,9.75333335,238.58,238.51,8.09923335]
[1733643535830,1.6541,238.58,238.52,8.09923335]
[1733643538313,1.6541,238.58,238.54,8.09923335]
[1733643538732,1.1541,238.58,238.54,8.09923335]
[1733643539742,1.1541,238.58,238.55,8.09923335]
[1733643540120,1.1541,238.58,238.56,8.09923335]
[1733643540327,8.09923335,238.64,238.57,8.09923335]
[1733643540921,0.12549,238.63,238.56,8.09923335]
[1733643541129,8.22472335,238.63,238.56,8.09923335]
[1733643541536,23.776884,238.62,238.56,8.09923335]
[1733643541934,23.776884,238.6,238.53,8.09923335]
[1733643542129,0.12549,238.59,238.53,8.09923335]
[1733643542545,0.12549,238.59,238.48,20.0]
[1733643542546,0.12549,238.59,238.54,8.09923335]
[1733643542752,23.776884,238.61,238.56,8.09923335]
[1733643542936,20.08483335,238.63,238.56,8.09923335]
[1733643543355,23.776884,238.62,238.56,8.09923335]
[1733643545542,23.776884,238.62,238.57,8.09923335]
[1733643546279,23.776884,238.62,238.56,8.09923335]
[1733643547966,31.87611735,238.62,238.55,8.09923335]
[1733643548367,0.12549,238.61,238.52,20.0]
[1733643548576,8.22472335,238.61,238.54,8.09923335]
[1733643552855,0.12549,238.61,238.55,8.09923335]
[1733643553455,0.12549,238.61,238.48,20.0]
[1733643553456,0.12549,238.61,238.56,8.09923335]
[1733643558188,0.12549,238.61,238.48,20.0]
[1733643558189,0.12549,238.61,238.55,8.09923335]
[1733643563278,0.12549,238.61,238.56,8.09923335]
[1733643567582,1.5091,238.63,238.56,8.09923335]
[1733643567776,1.5091,238.63,238.57,8.09923335]
[1733643568008,1.5091,238.63,238.58,8.09923335]
[1733643575817,1.5091,238.63,238.6,8.09923335]
[1733643577015,1.5091,238.63,238.58,8.09923335]
[1733643581704,1.5091,238.63,238.54,20.0]
[1733643581705,32.00160735,238.62,238.54,20.0]
[1733643581933,8.09923335,238.61,238.54,8.09923335]
[1733643582442,8.09923335,238.61,238.51,20.0]
[1733643582611,8.09923335,238.61,238.54,8.09923335]
[1733643582933,23.902374,238.6,238.49,20.0]
[1733643583105,8.22472335,238.58,238.46,6.1989]
[1733643583302,0.12549,238.56,238.5,8.09923335]
[1733643583502,0.12549,238.56,238.41,40.90911043]
[1733643583503,23.902374,238.56,238.41,1.5309]
[1733643583696,23.902374,238.56,238.5,8.09923335]
[1733643584448,23.776884,238.56,238.5,8.09923335]
[1733643585137,23.776884,238.56,238.51,8.09923335]
[1733643585432,23.776884,238.57,238.51,8.09923335]
[1733643586027,8.09923335,238.57,238.47,20.0]
[1733643586237,25.369184,238.56,238.5,8.09923335]
[1733643587636,25.369184,238.56,238.51,8.09923335]
[1733643591045,1.5923,238.56,238.52,8.09923335]
[1733643595550,1.5923,238.56,238.51,8.09923335]
[1733643597272,1.5923,238.56,238.5,8.09923335]
[1733643600073,1.5923,238.56,238.51,8.09923335]
[1733643601765,1.5923,238.56,238.5,8.09923335]
[1733643602266,9.69153335,238.56,238.49,8.09923335]
[1733643602607,31.87611735,238.55,238.48,8.09923335]
[1733643604741,31.87611735,238.55,238.43,20.0]
[1733643604943,8.09923335,238.54,238.47,8.09923335]
[1733643605563,8.09923335,238.54,238.43,20.0]
[1733643605564,23.776884,238.55,238.49,8.09923335]
[1733643606875,23.776884,238.55,238.5,8.09923335]
[1733643607279,1.5923,238.56,238.5,8.09923335]
[1733643607480,1.5923,238.56,238.51,8.09923335]
[1733643607647,1.5923,238.56,238.52,8.09923335]
[1733643613482,1.6433,238.61,238.54,8.09923335]
[1733643613684,23.776884,238.6,238.54,8.09923335]
[1733643614865,31.87611735,238.6,238.53,8.09923335]
[1733643619274,8.09923335,238.59,238.52,8.09923335]
[1733643620298,23.776884,238.6,238.52,8.09923335]
[1733643620299,31.87611735,238.6,238.52,8.09923335]
[1733643622600,23.776884,238.58,238.51,8.09923335]
[1733643627800,23.776884,238.58,238.52,8.09923335]
[1733643629972,8.09923335,238.57,238.47,20.0]
[1733643630191,31.87611735,238.56,238.49,8.09923335]
[1733643630392,1.561,238.54,238.47,20.0]
[1733643630598,1.561,238.54,238.48,8.09923335]
[1733643631386,1.561,238.54,238.44,20.0]
[1733643631582,1.561,238.54,238.48,8.09923335]
[1733643632700,1.561,238.54,238.49,8.09923335]
[1733643634482,1.561,238.54,238.5,8.09923335]
[1733643639292,1.561,238.54,238.44,20.0]
[1733643639501,1.561,238.54,238.49,8.09923335]
[1733643642905,1.561,238.54,238.48,8.09923335]
[1733643648014,1.561,238.54,238.49,8.09923335]
[1733643649716,1.561,238.54,238.5,8.09923335]
[1733643653589,1.5927,238.59,238.52,8.09923335]
[1733643655513,23.776884,238.58,238.52,8.09923335]
[1733643656020,31.87611735,238.58,238.51,8.09923335]
[1733643656801,23.776884,238.58,238.52,8.09923335]
[1733643657004,23.776884,238.58,238.53,8.09923335]
[1733643657194,1.5927,238.59,238.53,8.09923335]
[1733643657393,1.5927,238.59,238.55,8.09923335]
[1733643658212,1.5927,238.59,238.54,8.09923335]
[1733643662718,23.776884,238.58,238.5,20.0]
[1733643662917,23.776884,238.58,238.52,8.09923335]
[1733643663099,31.87611735,238.58,238.52,8.09923335]
[1733643666215,23.776884,238.58,238.52,8.09923335]
[1733643666724,23.776884,238.58,238.53,8.09923335]
[1733643670902,23.776884,238.58,238.52,8.09923335]
[1733643673827,23.776884,238.58,238.53,8.09923335]
[1733643675810,1.5927,238.59,238.56,8.09923335]
[1733643676015,23.776884,238.62,238.56,8.09923335]
[1733643677130,23.776884,238.62,238.55,8.09923335]
[1733643679344,23.776884,238.62,238.56,8.09923335]
[1733643684821,1.6493,238.64,238.58,8.09923335]
[1733643685184,1.6493,238.64,238.59,8.09923335]
[1733643686015,1.6493,238.64,238.58,8.09923335]
[1733643686441,9.74853335,238.64,238.57,8.09923335]
[1733643692433,1.6493,238.64,238.58,8.09923335]
[1733643693487,1.6493,238.64,238.61,8.09923335]
[1733643693684,1.6493,238.64,238.63,8.09923335]
[1733643693861,6.5376,238.69,238.63,8.09923335]
[1733643694983,23.776884,238.68,238.63,8.09923335]
[1733643696189,23.776884,238.68,238.64,8.09923335]
[1733643698264,23.776884,238.68,238.56,36.5889334]
[1733643698265,23.776884,238.68,238.63,8.09923335]
[1733643711524,6.5376,238.69,238.63,8.09923335]
[1733643711525,23.776884,238.69,238.63,8.09923335]
[1733643723046,23.776884,238.69,238.64,8.09923335]
[1733643723934,23.776884,238.69,238.63,8.09923335]
[1733643728344,23.776884,238.69,238.62,8.09923335]
[1733643729137,23.776884,238.69,238.63,8.09923335]
[1733643733516,20.20913335,238.7,238.65,8.09923335]
[1733643733517,1.6362,238.7,238.65,8.09923335]
[1733643733716,18.57113335,238.74,238.67,8.09923335]
[1733643734058,8.09923335,238.73,238.66,8.09923335]
[1733643734947,23.776884,238.72,238.66,8.09923335]
[1733643735944,23.776884,238.72,238.6,20.0]
[1733643736146,23.776884,238.72,238.66,8.09923335]
[1733643738971,23.776884,238.72,238.67,8.09923335]
[1733643739959,31.87611735,238.74,238.67,8.09923335]
[1733643743664,23.776884,238.72,238.66,8.09923335]
[1733643743858,23.776884,238.72,238.6,20.0]
[1733643744067,23.776884,238.68,238.56,38.5646334]
[1733643744368,23.776884,238.68,238.62,8.09923335]
[1733643747686,1.83068,238.67,238.53,1.66861198]
[1733643747981,1.83068,238.67,238.57,8.09923335]
[1733643747982,23.776884,238.63,238.57,8.09923335]
[1733643748155,23.776884,238.63,238.58,8.09923335]
[1733643748357,23.776884,238.64,238.58,8.09923335]
[1733643748752,23.776884,238.66,238.59,8.09923335]
[1733643748984,23.776884,238.64,238.59,8.09923335]
[1733643749182,23.776884,238.64,238.58,8.09923335]
[1733643749796,23.776884,238.66,238.58,8.09923335]
[1733643749993,8.09923335,238.62,238.5,10.2367]
[1733643750288,23.776884,238.61,238.55,8.09923335]
[1733643756076,23.776884,238.61,238.56,8.09923335]
[1733643759688,23.776884,238.61,238.57,8.09923335]
[1733643759990,31.87611735,238.63,238.56,8.09923335]
[1733643760510,8.09923335,238.62,238.53,20.0]
[1733643760716,8.09923335,238.59,238.53,20.0]
[1733643762117,8.09923335,238.59,238.48,20.0]
[1733643762318,8.09923335,238.59,238.52,8.09923335]
[1733643763626,9.64433335,238.6,238.53,8.09923335]
[1733643763918,23.776884,238.59,238.53,8.09923335]
[1733643764094,23.776884,238.59,238.54,8.09923335]
[1733643767111,23.776884,238.59,238.53,8.09923335]
[1733643767692,23.776884,238.57,238.51,8.09923335]
[1733643768346,23.626884,238.57,238.51,8.09923335]
[1733643769303,10.4783,238.59,238.51,8.09923335]
[1733643769525,8.09923335,238.58,238.51,8.09923335]
[1733643770124,10.4783,238.59,238.51,8.09923335]
[1733643770125,8.09923335,238.57,238.51,8.09923335]
[1733643770634,23.776884,238.56,238.51,8.09923335]
[1733643771430,31.87611735,238.52,238.46,8.09923335]
[1733643771804,23.776884,238.52,238.46,8.09923335]
[1733643772026,23.776884,238.52,238.39,6.6931384]
[1733643772210,23.776884,238.52,238.46,8.09923335]
[1733643773210,31.87611735,238.52,238.46,8.09923335]
[1733643773406,23.776884,238.5,238.45,8.09923335]
[1733643774521,23.776884,238.51,238.46,8.09923335]
[1733643778641,23.776884,238.52,238.42,20.0]
[1733643778837,23.776884,238.52,238.46,8.09923335]
[1733643779346,31.87611735,238.52,238.45,8.09923335]
[1733643780338,31.87611735,238.52,238.42,20.0]
[1733643780547,31.87611735,238.52,238.45,8.09923335]
[1733643782417,8.09923335,238.51,238.44,8.09923335]
[1733643787950,8.09923335,238.51,238.45,8.09923335]
[1733643799186,8.09923335,238.51,238.44,8.09923335]
[1733643805288,42.35831735,238.5,238.39,0.4996384]
[1733643805499,1.6192,238.49,238.44,8.09923335]
[1733643805886,1.6192,238.49,238.43,8.09923335]
[1733643806288,9.71843335,238.49,238.42,8.09923335]
[1733643810813,8.09923335,238.48,238.41,8.09923335]
[1733643812311,8.09923335,238.46,238.39,8.59887175]
[1733643812610,8.09923335,238.47,238.4,8.09923335]
[1733643814116,8.09923335,238.48,238.41,8.09923335]
[1733643817611,23.776884,238.48,238.41,8.09923335]
[1733643820320,23.776884,238.48,238.43,8.09923335]
[1733643822706,23.776884,238.48,238.42,8.09923335]
[1733643824244,31.87611735,238.48,238.41,8.09923335]
[1733643824601,31.87611735,238.48,238.4,8.09923335]
[1733643825202,31.87611735,238.48,238.39,0.4996384]
[1733643825412,8.09923335,238.47,238.39,8.59887175]
[1733643829037,8.09923335,238.43,238.39,0.4996384]
[1733643829335,8.09923335,238.45,238.39,0.4996384]
[1733643829539,8.09923335,238.46,238.39,8.59887175]
[1733643830343,8.09923335,238.44,238.39,0.4996384]
[1733643831427,8.09923335,238.45,238.39,0.4996384]
[1733643832435,8.09923335,238.44,238.39,0.4996384]
[1733643834430,8.09923335,238.43,238.39,0.4996384]
[1733643836335,8.09923335,238.44,238.39,0.4996384]
[1733643836720,8.09923335,238.46,238.39,8.59887175]
[1733643837342,23.776884,238.45,238.4,8.09923335]
[1733643839138,31.87611735,238.47,238.4,8.09923335]
[1733643840148,1.6192,238.49,238.41,8.09923335]
[1733643840358,1.6192,238.49,238.43,8.09923335]
[1733643840856,9.71843335,238.49,238.42,8.09923335]
[1733643842053,23.776884,238.48,238.42,8.09923335]
[1733643842428,31.87611735,238.48,238.41,8.09923335]
[1733643844100,8.09923335,238.47,238.41,8.09923335]
[1733643845470,8.09923335,238.47,238.4,8.09923335]
[1733643847279,0.12549,238.51,238.42,8.09923335]
[1733643847472,23.776884,238.49,238.43,8.09923335]
[1733643849297,18.58093335,238.52,238.45,8.09923335]
[1733643849679,23.776884,238.51,238.45,8.09923335]
[1733643851173,31.87611735,238.51,238.44,8.09923335]
[1733643856311,16.7557,238.56,238.45,8.09923335]
[1733643856481,8.09923335,238.53,238.46,8.09923335]
[1733643857606,8.09923335,238.52,238.45,8.09923335]
[1733643866210,8.09923335,238.51,238.44,8.09923335]
[1733643870429,8.09923335,238.52,238.44,8.09923335]
[1733643871837,8.09923335,238.52,238.45,8.09923335]
[1733643874710,8.09923335,238.52,238.44,8.09923335]
[1733643880416,18.58023335,238.53,238.45,8.09923335]
[1733643885821,12.1026,238.57,238.48,8.09923335]
[1733643886142,1.6232,238.57,238.51,8.09923335]
[1733643886307,8.09923335,238.59,238.52,8.09923335]
[1733643886709,8.09923335,238.6,238.53,8.09923335]
[1733643887109,8.09923335,238.59,238.52,8.09923335]
[1733643887439,8.09923335,238.58,238.51,8.09923335]
[1733643889037,8.09923335,238.59,238.52,8.09923335]
[1733643891143,23.776884,238.6,238.52,8.09923335]
[1733643891519,8.09923335,238.59,238.52,8.09923335]
[1733643891727,31.87611735,238.6,238.52,8.09923335]
[1733643892043,8.09923335,238.59,238.52,8.09923335]
[1733643895818,8.09923335,238.59,238.51,8.09923335]
[1733643896217,23.776884,238.6,238.51,8.09923335]
[1733643896442,8.09923335,238.59,238.51,8.09923335]
[1733643897545,8.09923335,238.58,238.5,8.09923335]
[1733643903434,8.09923335,238.57,238.5,8.09923335]
[1733643905741,8.09923335,238.58,238.5,8.09923335]
[1733643906527,8.09923335,238.58,238.51,8.09923335]
[1733643912161,23.776884,238.6,238.51,8.09923335]
[1733643912326,8.09923335,238.58,238.51,8.09923335]
[1733643912660,8.09923335,238.59,238.51,8.09923335]
[1733643913659,8.09923335,238.61,238.54,8.09923335]
[1733643914453,21.6352,238.62,238.54,8.09923335]
[1733643914659,1.5427,238.67,238.59,8.09923335]
[1733643914829,8.09923335,238.66,238.58,8.09923335]
[1733643915033,8.09923335,238.64,238.56,8.09923335]
[1733643915232,8.09923335,238.64,238.57,8.09923335]
[1733643915434,8.09923335,238.63,238.56,8.09923335]
[1733643916042,8.09923335,238.62,238.55,8.09923335]
[1733643916857,8.09923335,238.61,238.53,20.0]
[1733643917065,8.09923335,238.6,238.53,20.0]
[1733643917357,8.09923335,238.6,238.53,28.09923335]
[1733643917852,8.09923335,238.6,238.46,0.25098]
[1733643918040,8.09923335,238.59,238.51,8.09923335]
[1733643918961,10.4765,238.63,238.51,8.09923335]
[1733643918962,8.09923335,238.58,238.51,8.09923335]
[1733643920137,8.09923335,238.58,238.45,10.484]
[1733643920349,8.09923335,238.57,238.5,8.09923335]
[1733643920556,8.09923335,238.58,238.5,8.09923335]
[1733643922355,8.09923335,238.6,238.52,8.09923335]
[1733643925050,23.902374,238.62,238.53,8.09923335]
[1733643925251,8.09923335,238.6,238.53,8.09923335]
[1733643925647,8.09923335,238.64,238.56,8.09923335]
[1733643925963,8.09923335,238.65,238.57,8.09923335]
[1733643926568,8.09923335,238.64,238.57,8.09923335]
[1733643927251,8.09923335,238.64,238.56,8.09923335]
[1733643928240,8.09923335,238.64,238.57,8.09923335]
[1733643928466,8.09923335,238.65,238.57,8.09923335]
[1733643930242,8.09923335,238.64,238.57,8.09923335]